bitfinex/quotes_ETHUSD_20220305
["timestamp","ask_amount","ask_price","bid_price","bid_amount"]
[1646465955086,1.31719449,2636.4,2636.3,0.23314738]
[1646465955483,0.00272717,2636.6,2636.3,0.23314738]
[1646465956189,2.01594119,2636.7,2636.4,5.0]
[1646465956389,2.01594119,2636.7,2636.5,0.23314738]
[1646465956591,0.00272724,2636.6,2636.5,0.23314738]
[1646465957436,2.01594119,2636.7,2636.5,0.23314738]
[1646465957634,2.01866843,2636.7,2636.5,0.23314738]
[1646465958635,2.01594119,2636.7,2636.5,0.23314738]
[1646465958935,2.01866842,2636.7,2636.5,0.23314738]
[1646465959536,0.6987467,2636.6,2636.5,0.23314738]
[1646465959938,0.6987467,2636.6,2636.5,0.23323368]
[1646465960136,0.6987467,2636.6,2636.4,5.0]
[1646465960341,0.6987467,2636.6,2636.5,0.23331223]
[1646465960540,0.6987467,2636.6,2636.4,5.0]
[1646465960790,0.69904617,2636.6,2636.4,5.0]
[1646465961285,2.01896792,2636.6,2636.5,0.23331084]
[1646465961487,0.70177343,2636.6,2636.4,5.0]
[1646465961884,0.00272726,2636.6,2636.4,5.0]
[1646465962286,2.01624066,2636.7,2636.5,0.23328959]
[1646465962485,0.00272726,2636.6,2636.4,5.0]
[1646465962888,0.00272726,2636.6,2636.5,0.23329303]
[1646465963084,0.00272726,2636.6,2636.5,0.23329268]
[1646465963284,0.00272726,2636.6,2636.5,0.23328472]
[1646465963485,2.01624066,2636.7,2636.4,5.0]
[1646465963684,2.0189679,2636.7,2636.4,5.0]
[1646465964286,2.0189679,2636.7,2636.5,0.23328736]
[1646465964534,2.01624066,2636.7,2636.4,5.0]
[1646465964733,2.01624066,2636.7,2636.5,0.23328925]
[1646465964935,2.01896789,2636.7,2636.6,0.23328345]
[1646465965134,2.01896789,2636.7,2636.6,0.23326976]
[1646465965334,2.01896789,2636.7,2636.6,0.2332671]
[1646465965537,2.01896789,2636.7,2636.4,5.0]
[1646465965735,2.01624066,2636.7,2636.4,5.0]
[1646465965934,2.01624066,2636.7,2636.5,0.23326041]
[1646465966134,2.01624066,2636.7,2636.4,5.0]
[1646465966536,2.01624066,2636.7,2636.5,0.23324013]
[1646465966737,2.01624066,2636.7,2636.4,5.0]
[1646465967135,2.01624066,2636.7,2636.5,0.23327108]
[1646465967335,2.01624066,2636.7,2636.4,5.0]
[1646465967336,2.01896789,2636.7,2636.4,5.0]
[1646465967734,2.01896789,2636.7,2636.5,0.23327885]
[1646465967936,2.01896789,2636.7,2636.6,0.23327863]
[1646465968189,2.01624066,2636.7,2636.6,0.2332706]
[1646465968389,2.01896788,2636.7,2636.5,0.23327003]
[1646465968590,2.01896788,2636.7,2636.6,0.23327017]
[1646465968790,2.01896788,2636.7,2636.5,0.23327245]
[1646465968991,2.01896788,2636.7,2636.6,0.23327156]
[1646465969189,2.01896788,2636.7,2636.5,0.23325663]
[1646465969390,2.01624066,2636.7,2636.4,5.0]
[1646465969792,2.01624066,2636.7,2636.5,0.23326391]
[1646465969991,2.01624066,2636.7,2636.4,5.0]
[1646465970190,2.01624066,2636.7,2636.5,0.23327514]
[1646465970390,2.01624066,2636.7,2636.4,5.0]
[1646465970992,2.01896788,2636.7,2636.5,0.23327194]
[1646465971191,2.01896788,2636.7,2636.4,5.0]
[1646465971590,2.01896788,2636.7,2636.5,0.23327838]
[1646465971792,2.01896788,2636.7,2636.4,5.0]
[1646465971793,2.01624066,2636.7,2636.4,5.0]
[1646465972033,2.0189679,2636.7,2636.4,5.0]
[1646465972235,2.0189679,2636.7,2636.5,0.23324045]
[1646465972435,2.0189679,2636.7,2636.4,5.0]
[1646465972635,2.0189679,2636.7,2636.5,0.23324022]
[1646465972836,2.0189679,2636.7,2636.4,5.0]
[1646465973035,2.01624066,2636.7,2636.5,0.23322012]
[1646465973235,2.01896788,2636.7,2636.4,5.0]
[1646465973436,2.01896788,2636.7,2636.5,0.23321476]
[1646465973635,2.01896788,2636.7,2636.6,0.23321648]
[1646465973836,2.01896788,2636.7,2636.6,0.23321596]
[1646465974036,2.01896788,2636.7,2636.4,5.0]
[1646465974236,2.01624066,2636.7,2636.5,0.23322953]
[1646465974436,2.01624066,2636.7,2636.6,0.23322835]
[1646465974637,2.01624066,2636.7,2636.6,0.23323455]
[1646465974837,2.01624066,2636.7,2636.6,0.23323599]
[1646465975038,2.01624066,2636.7,2636.4,5.0]
[1646465975238,1.31719449,2636.6,2636.5,3.73319415]
[1646465975438,2.12212227,2637.0,2636.5,3.73319415]
[1646465975439,1.31719449,2636.9,2636.5,3.73319415]
[1646465975689,0.00272724,2636.7,2636.5,3.5]
[1646465975893,0.00272724,2636.7,2636.6,0.23307971]
[1646465975894,1.32059073,2636.7,2636.6,0.23307971]
[1646465976100,0.00272724,2636.7,2636.6,0.23307971]
[1646465976298,0.00190083,2636.7,2636.6,0.23307971]
[1646465976698,1.31782221,2636.9,2636.6,2.13032971]
[1646465976899,1.31782221,2636.9,2636.7,0.23307971]
[1646465977098,1.31782221,2636.8,2636.7,0.23307971]
[1646465977497,0.69904617,2637.1,2636.7,0.23307971]
[1646465977498,2.01686838,2637.1,2636.7,0.23307971]
[1646465977697,1.31782221,2637.0,2636.7,3.73307971]
[1646465977898,1.31782221,2636.9,2636.8,0.18307971]
[1646465978097,0.69904617,2637.1,2636.8,0.18307971]
[1646465980436,0.70196411,2637.1,2636.8,0.18307971]
[1646465980636,0.00291794,2637.1,2636.8,0.18307971]
[1646465981239,0.70196411,2637.1,2636.8,0.18307971]
[1646465981437,1.78329639,2637.2,2636.7,3.5]
[1646465981636,0.00291794,2637.1,2636.7,3.5]
[1646465982336,0.00291794,2637.1,2636.6,1.89725]
[1646465982538,1.78329639,2637.2,2636.6,1.89725]
[1646465982939,0.00291796,2637.0,2636.6,1.89725]
[1646465983189,0.00291796,2637.0,2636.7,3.5]
[1646465983392,0.00291796,2637.0,2636.6,1.89725]
[1646465983588,0.00291796,2637.0,2636.7,3.5]
[1646465983796,1.08425022,2637.2,2636.6,1.89725]
[1646465983989,0.00283046,2636.9,2636.6,1.89725]
[1646465984791,0.00283046,2636.9,2636.7,3.5]
[1646465984991,1.08425022,2637.2,2636.7,3.5]
[1646465985190,0.00283048,2636.9,2636.7,3.5]
[1646465985392,0.00283048,2636.9,2636.6,1.89725]
[1646465986196,8.17000617,2637.3,2636.6,1.89725]
[1646465986398,0.00283048,2636.9,2636.6,1.89725]
[1646465987431,9.37797411,2637.3,2636.7,3.5]
[1646465987629,0.00272427,2636.9,2636.7,3.5]
[1646465988330,0.00272427,2636.9,2636.7,4.5]
[1646465988531,0.00272427,2636.9,2636.7,1.0]
[1646465988731,1.13337563,2637.2,2636.6,1.89725]
[1646465988935,0.00272425,2636.9,2636.6,1.89725]
[1646465989632,0.00272425,2636.9,2636.7,3.5]
[1646465989834,0.00096,2637.3,2636.7,4.5]
[1646465990031,0.00272427,2636.9,2636.7,4.5]
[1646465990234,0.00272427,2636.9,2636.7,1.0]
[1646465990432,0.00272427,2636.9,2636.6,1.89725]
[1646465991087,0.00096,2637.3,2636.7,3.5]
[1646465991283,0.00096,2637.3,2636.5,4.0230993]
[1646465991284,0.00272752,2636.9,2636.5,3.07442]
[1646465991488,0.00272752,2636.9,2636.5,1.1258]
[1646465992287,1.22385301,2637.0,2636.5,1.1258]
[1646465992485,0.00272754,2636.8,2636.5,1.1258]
[1646465992886,0.00272754,2636.8,2636.4,5.0]
[1646465993485,1.22385301,2637.0,2636.4,5.0]
[1646465993686,0.00185082,2636.7,2636.5,1.89733]
[1646465994287,0.00185082,2636.7,2636.6,3.5]
[1646465994537,0.00096,2637.2,2636.6,4.68508466]
[1646465994739,1.85137724,2637.3,2636.6,4.68508466]
[1646465994938,0.00272965,2636.8,2636.6,5.68508466]
[1646465995537,0.00272965,2636.8,2636.7,3.5]
[1646465995735,0.01091698,2637.2,2636.7,3.5]
[1646465995938,1.15233107,2637.3,2636.7,3.5]
[1646465996138,1.15233107,2637.3,2636.7,4.44857]
[1646465996139,0.00272962,2636.9,2636.7,4.44857]
[1646465996338,0.00272962,2636.9,2636.7,0.94857]
[1646465996742,0.00272962,2636.9,2636.6,1.0]
[1646465996743,0.00272962,2636.9,2636.5,6.39733]
[1646465997140,1.15233107,2637.3,2636.5,6.39733]
[1646465997440,0.00272964,2636.8,2636.5,1.89733]
[1646465998188,1.31847916,2636.8,2636.6,0.2314083]
[1646465998392,1.31574952,2636.7,2636.6,0.2314083]
[1646465998892,1.31864111,2636.8,2636.6,1.1800683]
[1646465999093,0.00279942,2636.8,2636.7,0.2314083]
[1646465999492,1.31582859,2636.9,2636.7,0.2314083]
[1646465999693,0.00279938,2636.9,2636.7,0.2314083]
[1646466000295,0.00279938,2636.9,2636.7,1.32270221]
[1646466000493,0.00279938,2636.9,2636.8,0.2314083]
[1646466000696,1.31582859,2637.2,2636.8,0.2314083]
[1646466000897,0.00279936,2636.9,2636.6,0.94866]
[1646466001116,0.00279936,2636.9,2636.7,0.23133287]
[1646466001949,0.9920066,2636.9,2636.7,0.23133287]
[1646466002149,1.31582859,2636.8,2636.7,0.23133287]
[1646466003144,1.31582859,2637.2,2636.7,0.23133287]
[1646466003344,0.00271911,2636.9,2636.7,0.23133287]
[1646466004345,1.31582859,2637.2,2636.7,0.23133287]
[1646466004548,0.00271909,2636.9,2636.7,0.23133287]
[1646466005683,0.00273083,2636.9,2636.7,0.23133287]
[1646466006088,1.31855942,2636.9,2636.7,0.23133287]
[1646466006288,0.00273083,2636.9,2636.7,0.23133287]
[1646466006690,1.31622621,2637.2,2636.7,0.23133287]
[1646466006891,0.00273083,2636.9,2636.7,0.23133287]
[1646466007790,1.31622621,2637.2,2636.7,0.23133287]
[1646466008189,0.00273083,2636.9,2636.7,0.23133287]
[1646466009290,0.00272912,2636.9,2636.7,0.23133287]
[1646466010335,1.31622621,2637.2,2636.7,0.23133287]
[1646466010535,1.10402849,2636.9,2636.7,0.23133287]
[1646466010738,1.31622621,2636.8,2636.7,0.23133287]
[1646466010936,1.31622621,2636.8,2636.6,0.23133287]
[1646466011742,1.31895536,2636.8,2636.6,0.23133287]
[1646466011941,1.31622621,2636.7,2636.6,0.23133287]
[1646466012140,0.00272915,2636.8,2636.6,0.23133287]
[1646466012740,1.31692209,2637.0,2636.6,0.23133287]
[1646466012942,0.0027294,2636.8,2636.6,0.23133287]
[1646466013183,0.91883238,2636.8,2636.6,0.23133287]
[1646466013382,1.31692209,2636.7,2636.6,0.23133287]
[1646466013583,1.31704088,2636.7,2636.6,0.23133287]
[1646466016087,1.31704088,2636.7,2636.5,0.23133287]
[1646466016490,1.31704088,2636.6,2636.5,0.23133287]
[1646466017134,0.00272938,2636.8,2636.5,0.23133287]
[1646466017537,2.01608705,2636.9,2636.5,0.23133287]
[1646466017735,0.00272938,2636.8,2636.5,0.23133287]
[1646466017935,1.31977026,2636.8,2636.5,0.23133287]
[1646466018738,1.31704088,2636.8,2636.5,0.23133287]
[1646466019038,1.3175948,2636.7,2636.5,0.23133287]
[1646466019237,0.00272938,2636.8,2636.5,0.23133287]
[1646466019437,0.0019052,2636.8,2636.5,0.23133287]
[1646466019836,1.31757141,2637.1,2636.5,0.23133287]
[1646466020040,1.31757141,2637.1,2636.7,1.05439932]
[1646466020239,1.31757141,2637.0,2636.8,0.23133287]
[1646466020440,1.31757141,2636.9,2636.8,0.23133287]
[1646466020889,1.31757141,2637.2,2636.8,0.23133287]
[1646466021090,1.31757141,2637.1,2636.8,0.23133287]
[1646466021288,1.31941966,2637.0,2636.8,0.23133287]
[1646466021490,1.31757141,2636.9,2636.8,0.23133287]
[1646466021688,0.00184825,2637.0,2636.8,0.23133287]
[1646466022291,2.01757758,2637.3,2636.8,0.23133287]
[1646466022490,0.00184825,2637.0,2636.8,0.23133287]
[1646466023092,1.31941966,2637.0,2636.8,0.23133287]
[1646466023293,1.31757141,2636.9,2636.8,0.23133287]
[1646466023693,0.00292053,2637.0,2636.8,0.23133287]
[1646466024740,0.69904617,2637.2,2636.8,0.23133287]
[1646466025137,0.00292053,2637.0,2636.8,0.23133287]
[1646466025540,1.32049194,2637.0,2636.8,0.23133287]
[1646466025745,1.31757141,2636.9,2636.8,0.23133287]
[1646466026343,0.00292053,2637.0,2636.8,0.23133287]
[1646466026948,1.32049194,2637.0,2636.8,0.23133287]
[1646466027148,1.31757141,2636.9,2636.8,0.23133287]
[1646466027749,0.00292053,2637.0,2636.8,0.23133287]
[1646466028389,2.01757758,2637.3,2636.8,0.23133287]
[1646466028590,0.00282415,2637.0,2636.8,0.23133287]
[1646466029490,2.01757758,2637.3,2636.8,0.23133287]
[1646466029690,0.00280864,2637.0,2636.8,0.23133287]
[1646466030691,2.01757758,2637.3,2636.8,0.23133287]
[1646466030890,0.00280864,2637.0,2636.8,0.23133287]
[1646466031955,2.01757758,2637.3,2636.8,0.23133287]
[1646466032141,0.00270037,2637.0,2636.8,0.23133287]
[1646466033142,2.01757758,2637.3,2636.8,3.73133287]
[1646466033339,0.00271588,2637.0,2636.9,0.23133287]
[1646466033940,0.00271588,2637.0,2636.8,0.23133287]
[1646466034241,2.01757758,2637.3,2636.9,0.23133287]
[1646466034442,1.31757141,2637.3,2637.0,0.23133287]
[1646466034640,1.31757141,2637.3,2637.1,0.23133287]
[1646466034840,1.31757141,2637.3,2637.2,0.23133287]
[1646466036090,2.01934865,2637.4,2637.2,0.23133287]
[1646466036288,1.31757141,2637.3,2636.7,2.14356]
[1646466036490,1.31757141,2637.2,2636.8,0.23201652]
[1646466036690,1.31757141,2637.1,2636.8,0.23201652]
[1646466036889,1.31757141,2637.0,2636.8,3.73201652]
[1646466037090,0.00273116,2637.1,2636.9,2.12909652]
[1646466037288,0.00273116,2637.1,2637.0,0.23201652]
[1646466037889,0.69904617,2637.3,2637.0,0.23201652]
[1646466038088,0.00273114,2637.2,2637.0,0.23201652]
[1646466039091,0.69904617,2637.3,2637.0,0.23201652]
[1646466039291,0.00272888,2637.2,2637.0,0.23201652]
[1646466040334,0.69904617,2637.3,2637.0,0.23201652]
[1646466040537,0.00272888,2637.2,2637.0,0.23201652]
[1646466040942,0.00272888,2637.2,2637.0,4.68054652]
[1646466041142,0.00272888,2637.2,2637.1,8.37117871]
[1646466041143,0.00190574,2637.2,2637.1,8.37117871]
[1646466041542,1.31777425,2637.5,2637.1,8.37117871]
[1646466041741,1.31777425,2637.5,2637.2,6.76790871]
[1646466041940,1.31777425,2637.5,2637.3,8.37117871]
[1646466042141,1.31777425,2637.5,2637.4,8.19682058]
[1646466042341,1.31777425,2637.5,2637.4,9.14975666]
[1646466042942,1.31777425,2637.5,2637.4,5.64975666]
[1646466047642,9.68e-05,2637.6,2637.5,4.80067286]
[1646466047842,0.0025066,2637.7,2637.5,12.68698566]
[1646466048043,0.67519304,2638.5,2637.8,0.381]
[1646466048241,0.67519304,2638.5,2637.9,3.5]
[1646466048445,0.0067405,2638.5,2637.9,7.92278956]
[1646466048647,0.0067405,2638.5,2638.2,1.21830206]
[1646466048852,0.0067405,2638.5,2638.2,3.11424006]
[1646466049349,0.0067405,2638.5,2638.3,4.3125949]
[1646466049548,0.0067405,2638.5,2638.3,7.8125949]
[1646466049752,0.0067405,2638.5,2638.3,4.3125949]
[1646466049950,0.0067405,2638.5,2638.4,3.5]
[1646466050449,0.0067405,2638.5,2638.3,7.8125949]
[1646466050686,0.0067405,2638.5,2638.3,4.3125949]
[1646466050894,0.0067405,2638.5,2638.3,8.8125949]
[1646466051293,0.0067405,2638.5,2638.4,3.5]
[1646466051895,0.0067405,2638.5,2638.3,5.3125949]
[1646466052695,0.00946607,2638.5,2638.3,5.3125949]
[1646466053295,0.00946607,2638.5,2638.3,4.3125949]
[1646466053497,0.0067405,2638.5,2638.3,4.3125949]
[1646466053796,1.03646848,2638.4,2638.3,4.3125949]
[1646466056045,0.03646848,2638.4,2638.3,4.3125949]
[1646466056845,0.00952688,2638.5,2638.3,4.3125949]
[1646466057248,0.0067405,2638.5,2638.3,4.3125949]
[1646466057447,0.0094561,2638.5,2638.3,4.3125949]
[1646466058393,0.0067405,2638.5,2638.3,6.28541401]
[1646466058595,0.00945608,2638.5,2638.3,6.28541401]
[1646466058792,0.00945608,2638.5,2638.3,1.97281911]
[1646466059598,0.0067405,2638.5,2638.3,1.97281911]
[1646466059796,0.00945608,2638.5,2638.3,1.97281911]
[1646466060398,0.00945608,2638.5,2638.3,0.94807]
[1646466060700,0.0067405,2638.5,2638.3,0.94807]
[1646466061198,0.00946643,2638.5,2638.3,0.94807]
[1646466061400,0.00946643,2638.5,2638.3,2.1559035]
[1646466062036,0.0067405,2638.5,2638.3,2.1559035]
[1646466062235,0.00946643,2638.5,2638.3,2.1559035]
[1646466063140,0.0067405,2638.5,2638.3,2.1559035]
[1646466063339,0.00946643,2638.5,2638.3,2.1559035]
[1646466064142,0.00946643,2638.5,2638.3,0.94807]
[1646466064343,0.0067405,2638.5,2638.3,0.94807]
[1646466064945,0.0067405,2638.5,2638.2,1.89618]
[1646466065544,0.0067405,2638.5,2638.1,4.12341785]
[1646466067593,0.0067405,2638.5,2638.0,8.59723808]
[1646466067794,0.0067405,2638.5,2638.1,4.1035745]
[1646466068197,0.0028407,2638.4,2638.1,4.1035745]
[1646466068595,1.04779831,2638.4,2638.1,4.1035745]
[1646466069197,1.04779831,2638.4,2638.0,0.94821]
[1646466069198,1.04495761,2638.4,2638.0,0.94821]
[1646466069449,1.04779831,2638.4,2638.0,0.94821]
[1646466070541,0.00284072,2638.3,2638.0,0.94821]
[1646466071546,1.26718975,2638.4,2638.0,0.94821]
[1646466071748,0.00269048,2638.3,2638.0,4.44821]
[1646466072748,0.0067405,2638.5,2638.0,4.44821]
[1646466072947,0.00269048,2638.3,2638.0,4.44821]
[1646466073996,0.0067405,2638.5,2638.0,4.44821]
[1646466074194,0.00269048,2638.3,2638.0,4.44821]
[1646466074694,0.00269048,2638.3,2638.1,0.27030978]
[1646466075092,0.0067405,2638.5,2638.1,0.27030978]
[1646466075294,0.0067405,2638.5,2638.3,1.1310765]
[1646466075495,0.0067405,2638.5,2638.4,3.5]
[1646466075694,0.0067405,2638.5,2638.3,1.1310765]
[1646466076698,0.0067405,2638.5,2638.4,3.5]
[1646466076699,0.00945287,2638.5,2638.4,3.5]
[1646466076947,0.00945287,2638.5,2638.4,3.77027132]
[1646466077141,0.00945287,2638.5,2638.4,0.27027132]
[1646466077543,0.0067405,2638.5,2638.4,0.27027132]
[1646466077743,0.0067405,2638.5,2638.4,3.77027132]
[1646466082795,0.0067405,2638.5,2638.4,0.27027132]
[1646466083196,0.0067405,2638.5,2638.3,1.32891]
[1646466083697,0.0067405,2638.5,2638.4,3.77034447]
[1646466083897,0.00945012,2638.5,2638.4,3.77034447]
[1646466084297,0.00945012,2638.5,2638.4,4.77034447]
[1646466084844,0.0067405,2638.5,2638.4,4.77034447]
[1646466085544,0.00082227,2638.5,2638.4,4.77034447]
[1646466088998,0.00082227,2638.5,2638.4,16.34034447]
[1646466089195,0.00082227,2638.5,2638.4,17.40760714]
[1646466089395,0.02081662,2639.0,2638.6,12.51771]
[1646466089595,0.0099925,2639.0,2638.7,4.71804447]
[1646466089795,0.0099925,2639.0,2638.8,0.27034447]
[1646466089996,0.0099925,2639.0,2638.9,0.92789567]
[1646466090199,0.0099925,2639.0,2638.9,1.19824014]
[1646466090596,0.0099925,2639.0,2638.9,0.27034447]
[1646466091004,0.0099925,2639.0,2638.2,1.2196]
[1646466091204,1.27050521,2638.9,2638.3,0.27014514]
[1646466091702,1.09062174,2638.6,2638.3,0.27014514]
[1646466092141,1.09062174,2638.6,2638.4,0.27014514]
[1646466092342,1.09062174,2638.6,2638.5,0.27014514]
[1646466092941,1.09062174,2638.6,2638.1,0.27014514]
[1646466093147,1.09062174,2638.6,2638.2,0.27014514]
[1646466093346,1.09158174,2638.6,2638.3,0.27014514]
[1646466093547,1.27220404,2638.5,2638.4,0.27014514]
[1646466093845,1.27220404,2638.5,2637.9,0.27014514]
[1646466094048,1.27220404,2638.5,2638.0,0.27014514]
[1646466094249,1.27220404,2638.5,2638.1,0.27014514]
[1646466095698,1.09062174,2638.6,2638.1,0.27014514]
[1646466096601,1.14583351,2638.2,2638.1,0.27014514]
[1646466096801,0.19046,2638.8,2638.1,0.27014514]
[1646466097103,1.27523871,2638.7,2638.1,0.27014514]
[1646466097602,1.27234077,2638.6,2638.1,0.27014514]
[1646466097804,0.00289794,2638.7,2638.1,0.27014514]
[1646466098002,1.03368684,2638.6,2638.1,0.27014514]
[1646466098403,1.03368684,2638.6,2638.1,1.21822714]
[1646466098602,1.03368684,2638.6,2638.2,2.16628514]
[1646466098803,1.03368684,2638.6,2638.3,0.27014514]
[1646466099754,1.27245006,2638.5,2638.3,0.27014514]
[1646466100555,1.27245006,2638.5,2638.4,0.27014514]
[1646466100756,1.19013712,2638.2,2637.8,1.89634]
[1646466100954,1.19013712,2638.2,2637.9,0.27054408]
[1646466101357,0.00096,2638.4,2637.9,0.27054408]
[1646466101553,1.2728369,2638.5,2637.9,0.27054408]
[1646466102453,1.0401292,2638.3,2637.9,0.27054408]
[1646466102656,1.53086,2638.6,2637.9,0.27054408]
[1646466102657,1.14986,2638.6,2637.9,0.27054408]
[1646466102855,1.27299757,2638.5,2637.9,0.27054408]
[1646466103297,1.27299757,2638.5,2637.9,1.21870408]
[1646466103498,1.27299757,2638.5,2638.0,0.27054408]
[1646466104901,2.24883334,2638.5,2638.0,0.27054408]
[1646466105097,0.97583577,2638.5,2638.0,1.47845937]
[1646466105400,1.1489,2638.6,2638.1,0.27054408]
[1646466105597,0.19220782,2638.7,2638.1,0.27054408]
[1646466105801,1.27299053,2638.6,2638.2,0.94811]
[1646466106000,1.27299053,2638.6,2638.3,0.27054408]
[1646466106401,0.97998508,2638.6,2638.3,0.27054408]
[1646466106601,1.27317968,2638.5,2638.3,0.27054408]
[1646466106800,0.97998508,2638.6,2638.3,0.27054408]
[1646466107041,0.97998508,2638.6,2638.5,0.45013635]
[1646466107243,2.25316136,2638.6,2638.5,0.72068043]
[1646466107449,2.25316146,2638.6,2638.5,0.72084046]
[1646466108852,1.27317638,2638.6,2638.5,0.72084046]
[1646466109351,0.00247633,2638.7,2638.5,0.72084046]
[1646466109549,0.00247633,2638.7,2638.6,0.2706587]
[1646466109751,1.27565271,2638.7,2638.6,0.2706587]
[1646466110050,1.27317638,2638.7,2638.6,0.2706587]
[1646466118597,1.274963,2638.7,2638.6,0.27094618]
[1646466123952,1.274963,2638.7,2638.5,0.45013635]
[1646466124153,1.274963,2638.7,2638.6,0.27094387]
[1646466124754,1.27746007,2638.7,2638.6,0.27094387]
[1646466125552,1.274963,2638.7,2638.6,0.27094387]
[1646466130457,1.11002952,2638.8,2638.6,0.27094387]
[1646466130657,1.11252658,2638.8,2638.6,0.27094387]
[1646466131559,0.1894,2639.1,2638.6,0.27094387]
[1646466131762,0.1894,2639.2,2638.6,0.27094387]
[1646466133400,0.8880687,2639.0,2638.6,0.27094387]
[1646466134209,0.00289803,2638.9,2638.6,0.27094387]
[1646466135206,0.8880687,2639.0,2638.6,0.27094387]
[1646466135407,0.00289799,2638.9,2638.6,0.27094387]
[1646466136410,0.8880687,2639.0,2638.6,0.27094387]
[1646466136610,0.00289799,2638.9,2638.6,0.27094387]
[1646466138753,0.8880687,2639.0,2638.6,0.27094387]
[1646466139156,0.00284366,2638.9,2638.6,0.27094387]
[1646466140055,1.0,2639.1,2638.6,0.27094387]
[1646466140254,0.00284366,2638.9,2638.6,0.27094387]
[1646466141098,0.69866922,2639.0,2638.6,0.27094387]
[1646466141502,0.00284366,2638.9,2638.6,0.27094387]
[1646466142305,0.69866922,2639.0,2638.6,0.27094387]
[1646466142705,1.0,2639.1,2638.6,0.27094387]
[1646466142706,0.00270166,2638.9,2638.6,0.27094387]
[1646466143505,0.69866922,2639.2,2638.6,0.27094387]
[1646466143706,0.69866922,2639.1,2638.6,0.27094387]
[1646466144006,0.00270166,2638.9,2638.6,0.27094387]
[1646466144647,0.00270166,2638.9,2638.7,0.06473394]
[1646466144848,0.69866922,2639.1,2638.7,0.06473394]
[1646466145048,0.00270166,2638.9,2638.7,0.06473394]
[1646466146054,0.69866922,2639.1,2638.8,1.02731561]
[1646466146255,0.00270666,2638.9,2638.8,1.02731561]
[1646466147256,0.69866922,2639.2,2638.8,1.02731561]
[1646466147455,0.00270665,2639.0,2638.8,1.02731561]
[1646466148496,0.69866922,2639.2,2638.8,1.02731561]
[1646466148696,0.00181357,2639.0,2638.8,1.02731561]
[1646466149500,0.69866922,2639.2,2638.8,1.02731561]
[1646466149901,0.00270831,2639.0,2638.8,1.02731561]
[1646466150502,0.00270831,2639.0,2638.9,0.30782807]
[1646466150702,1.2408485,2639.0,2638.9,0.30782807]
[1646466150901,1.93951772,2639.2,2638.9,0.30782807]
[1646466151103,0.00270831,2639.0,2638.9,0.30782807]
[1646466151961,1.93951772,2639.2,2638.9,0.30782807]
[1646466152254,0.00270829,2639.1,2638.9,0.30782807]
[1646466152451,0.00270829,2639.1,2638.9,0.30673845]
[1646466152653,0.00270829,2639.1,2638.8,1.02731561]
[1646466153253,0.69866922,2639.2,2638.8,1.02731561]
[1646466153456,0.0027787,2639.1,2638.8,1.02731561]
[1646466154455,1.68395588,2639.3,2638.8,1.02731561]
[1646466154654,1.68395588,2639.3,2638.9,0.04451607]
[1646466154655,0.0027787,2639.1,2638.9,0.04451607]
[1646466155705,0.69866922,2639.2,2638.8,1.00062889]
[1646466155906,0.00277868,2639.1,2638.5,0.45013635]
[1646466156907,0.69866922,2639.2,2638.5,0.45013635]
[1646466157108,0.0026978,2638.9,2638.6,1.21472201]
[1646466157908,8.43779485,2639.4,2638.7,2.7]
[1646466157909,5.13523811,2639.4,2638.7,2.7]
[1646466158109,0.93166227,2639.4,2638.7,2.7]
[1646466158310,0.00269776,2638.9,2638.6,1.21472201]
[1646466159109,0.01078965,2639.3,2638.6,1.21472201]
[1646466159310,1.69923582,2639.4,2638.6,1.21472201]
[1646466159551,0.03524584,2639.1,2638.6,1.21472201]
[1646466159757,0.03524584,2639.1,2638.5,0.45013635]
[1646466160556,0.96690811,2639.1,2638.5,0.45013635]
[1646466160758,1.03438053,2638.8,2638.7,0.00270992]
[1646466161555,1.03438053,2638.8,2638.5,0.45013635]
[1646466161961,1.03438053,2638.8,2638.6,0.00270993]
[1646466162762,1.03438053,2638.8,2638.5,0.45013635]
[1646466162960,1.03438053,2638.8,2638.6,0.00270995]
[1646466164005,1.03438053,2638.8,2638.5,0.45013635]
[1646466164204,1.03438053,2638.8,2638.6,0.00270708]
[1646466164605,1.0,2639.0,2638.6,0.00270708]
[1646466164804,0.03399304,2638.8,2638.6,0.00270708]
[1646466165208,0.03399304,2638.8,2638.5,0.45013635]
[1646466165411,0.03399304,2638.8,2638.6,0.00270708]
[1646466166410,0.03399304,2638.8,2638.5,0.45013635]
[1646466166710,0.03399304,2638.8,2638.6,0.00270708]
[1646466167552,0.03399304,2638.8,2638.5,0.45013635]
[1646466167750,0.03399304,2638.8,2638.6,1.13536559]
[1646466167952,0.03399304,2638.8,2638.6,1.13807309]
[1646466168751,0.03399304,2638.8,2638.6,1.13536559]
[1646466169355,0.03399304,2638.8,2638.6,1.13807309]
[1646466169555,0.03513993,2638.7,2638.6,1.13807309]
[1646466169956,0.03513993,2638.7,2638.6,1.13536559]
[1646466172906,1.26072776,2638.7,2638.6,1.45693882]
[1646466174207,1.25369977,2638.7,2638.6,1.45693882]
[1646466175962,0.02811194,2638.7,2638.6,1.45693882]
[1646466176360,1.25380801,2638.7,2638.6,1.45693882]
[1646466176560,1.2538084,2638.7,2638.6,1.45693882]
[1646466176761,0.02811194,2638.7,2638.6,1.45693882]
[1646466176960,1.25380944,2638.7,2638.6,1.45693882]
[1646466177161,1.25381436,2638.7,2638.6,1.45693882]
[1646466177361,1.25381401,2638.7,2638.6,1.45693882]
[1646466177961,1.2537624,2638.7,2638.6,1.45693882]
[1646466178804,1.2037624,2638.7,2638.6,1.45693882]
[1646466179006,1.00096,2639.0,2638.6,1.45693882]
[1646466179206,1.0,2639.0,2638.6,1.45693882]
[1646466179608,0.02811195,2638.7,2638.6,1.45693882]
[1646466179808,0.01632138,2638.7,2638.6,1.45693882]
[1646466182059,0.01632138,2638.7,2638.6,1.13536559]
[1646466182458,3.81632138,2638.7,2638.6,1.13536559]
[1646466183761,3.81632138,2638.7,2638.6,4.63536559]
[1646466184562,3.8,2638.7,2638.6,4.6674918]
[1646466189007,3.8,2638.7,2638.6,4.63536559]
[1646466190656,0.63009975,2638.7,2638.6,5.01636559]
[1646466190858,0.00096,2639.3,2638.7,4.7]
[1646466191057,1.00270657,2639.4,2638.8,16.39867]
[1646466191256,1.00270657,2639.4,2638.9,1.3286556]
[1646466191558,1.0,2639.4,2639.0,3.5]
[1646466191758,1.0,2639.4,2639.1,1.20604848]
[1646466191959,0.00270691,2639.4,2639.1,1.20604848]
[1646466192356,0.00270691,2639.4,2639.2,3.5]
[1646466192560,0.00270691,2639.4,2639.2,4.4476087]
[1646466192757,0.00270691,2639.4,2639.2,5.4476087]
[1646466192958,3.8,2639.5,2639.3,3.5]
[1646466193204,0.00181145,2639.4,2639.3,1.0]
[1646466193609,0.00181145,2639.4,2639.2,0.9476087]
[1646466194007,3.8,2639.5,2639.2,0.9476087]
[1646466194210,0.00181145,2639.4,2639.2,0.9476087]